Cogmind - Beta 13 @@@ ROGUE MODE // 2024.06.26 @ 23:17:55 Player: doughoff Result: Self-destructed Performance ------------- Evolutions (3) 1500 Regions Visited (8) 1600 Robots Destroyed (108) 540 Value Destroyed (4458) 4458 Prototype IDs (30) 600 Alien Tech Used (0) 0 Bonus (1887) 1887 TOTAL SCORE: 10585 Bonus ------- High Alert Combat Kills 926 Entered Garrisons 200 Used RIF Installer 500 Aligned with FarCom 300 Friendly Fire -39 Cogmind --------- Core Integrity 695/700 Matter 268/300 Energy 290/290 System Corruption 0% Temperature Cool (0) Movement Hovering (108) Ox1 Location -7/Factory Parts ------- > --- POWER (1) -------- Improved Deuterium Engine > --- PROPULSION (4) --- Gravmag System Gravmag System Gravmag System Gravmag System > --- UTILITY (6) ------ High-capacity Storage Unit Advanced Targeting Computer System Shield > --- WEAPON (2) ------- Katana > --- INVENTORY (20) --- Improved Deuterium Engine Potential Leg Potential Leg Gravmag System Gravmag System Experimental Sensor Array Light Armor Plating Hardened Medium Armor Plating Relay Coupler [NC] (27) Heavy Particle Gun Heavy Assault Rifle Shotgun Improved Assault Rifle Minigun Enhanced Autogun Grenade Launcher Mini Grenade Launcher Peak State ------------ > --- POWER ------------ Improved Deuterium Engine > --- PROPULSION ------- Aluminum Leg Improved Aluminum Leg Potential Leg Potential Leg > --- UTILITY ---------- High-capacity Storage Unit Advanced Targeting Computer Hardened Medium Armor Plating Powered Armor > --- WEAPON ----------- Shotgun Katana > --- INVENTORY -------- Improved Deuterium Engine Gravmag System Gravmag System Gravmag System Gravmag System Gravmag System Gravmag System Experimental Sensor Array Light Armor Plating Relay Coupler [NC] Heavy Assault Rifle Improved Assault Rifle Minigun Enhanced Autogun Grenade Launcher Mini Grenade Launcher [Rating: 48] Favorites ----------- Power Light Nuclear Core Engine Ion Engine Power Core Light Nuclear Core Propulsion Improved Carbon-fiber Leg Treads Light Treads Leg Improved Carbon-fiber Leg Wheel Compact Wheel Hover Unit Gravmag System Flight Unit Improved VTOL Module Utility Light Armor Plating Device Improved Heat Sink Storage High-capacity Storage Unit Processor Advanced Targeting Computer Hackware System Shield Protection Light Armor Plating Weapon Enhanced Autogun Energy Gun Heavy Particle Gun Energy Cannon Advanced Beam Cannon Ballistic Gun Enhanced Autogun Launcher Grenade Launcher Slashing Weapon Katana Build | -11 -10 -10 -10 -9 -8 -8 -8 -7 ------- Run | Yrd Mat Min Exi Min Mat Gar Mat Fac Slots Evolved 6 | . . . . . 4 . . 2 Power . | . . . . . . . . . Propulsion 2 | . . . . . 2 . . . Utility 4 | . . . . . 2 . . 2 Weapon . | . . . . . . . . . Parts Attached 120 | 6 24 5 4 2 36 14 28 1 Power 13 | 1 4 1 . . 5 1 1 . Engine 9 | 1 4 1 . . 2 . 1 . Core 4 | . . . . . 3 1 . . Reactor . | . . . . . . . . . Propulsion 46 | 2 6 1 2 . 14 5 16 . Treads 4 | 2 1 . . . 1 . . . Leg 36 | . 4 1 2 . 13 5 11 . Wheel 1 | . 1 . . . . . . . Hover 4 | . . . . . . . 4 . Flight 1 | . . . . . . . 1 . Utility 23 | 1 3 1 . . 9 3 5 1 Device 7 | . 2 1 . . 4 . . . Storage 3 | 1 1 . . . 1 . . . Processor 1 | . . . . . 1 . . . Hackware 1 | . . . . . . . . 1 Protection 11 | . . . . . 3 3 5 . Artifact . | . . . . . . . . . Weapon 38 | 2 11 2 2 2 8 5 6 . Energy Gun 1 | . . . . . . . 1 . Energy Cannon 1 | . . . . . 1 . . . Ballistic Gun 31 | 2 10 2 2 1 7 4 3 . Ballistic Cannon . | . . . . . . . . . Launcher 4 | . 1 . . 1 . 1 1 . Special Weapon . | . . . . . . . . . Impact Weapon . | . . . . . . . . . Slashing Weapon 1 | . . . . . . . 1 . Piercing Weapon . | . . . . . . . . . Special Melee Weapon . | . . . . . . . . . Unidentified Prototypes 6 | . . . . . 4 . 2 . Parts Lost 21 | . 4 1 . . 5 7 4 . Power 4 | . 1 1 . . 1 1 . . Propulsion 9 | . 2 . . . 1 3 3 . Utility 4 | . . . . . 1 2 1 . Weapon 4 | . 1 . . . 2 1 . . Highest Loss Streak 3 | . 2 1 . . 2 3 2 . To Critical Strikes . | . . . . . . . . . Average Slot Usage (%) 94 | . 89 94 74 100 96 95 97 84 Engine 6 | . 11 8 14 14 4 . 8 7 Core 3 | . . . . . 4 8 . . Treads 2 | . 12 . . . . . . . Leg 28 | . 8 28 28 28 35 34 34 . Wheel 1 | . 6 . . . . . . . Device 8 | . 9 14 14 14 15 . . . Storage 10 | . 14 14 14 14 9 9 9 7 Processor 3 | . . . . . . 9 9 7 Protection 8 | . . . . . 8 15 17 12 Ballistic Gun 17 | . 26 17 3 14 17 17 10 . Launcher 1 | . . 10 . 14 . . . . Slashing Weapon 1 | . . . . . . . 6 7 Naked Turns . | . . . . . . . . . Heaviest Build 73 | 12 21 21 17 19 65 64 73 66 Greatest Support 85 | 40 40 20 60 60 80 66 85 36 Greatest Overweight (x) 5 | . 4 1 . . 1 1 5 1 Average Overweight (x) . | . . . . . . . . 1 Largest Inventory Capacity 20 | 8 10 10 10 10 20 20 20 20 Average Capacity 14 | 6 9 10 10 10 13 20 20 20 Most Carried 20 | 3 10 10 10 9 20 20 20 17 Average Carried 13 | 2 8 10 10 8 11 19 19 14 Final Capacity 20 | 8 10 10 10 10 20 20 20 20 Final Carried 20 | 3 10 10 10 8 20 19 14 17 Class Distribution -------------------- 57% | Mutant 42% | Scavenger-Mutant Dominant Class ---------------- Mutant | -10/Materials Mutant | -10/Mines Scavenger-Mutant | -10/Exiles Scavenger-Mutant | -9/Mines Mutant | -8/Materials Mutant | -8/Garrison Scavenger-Mutant | -8/Materials Scavenger-Mutant | -7/Factory Resources | -11 -10 -10 -10 -9 -8 -8 -8 -7 ----------- Run | Yrd Mat Min Exi Min Mat Gar Mat Fac Matter Collected 3371 | 228 318 169 . . 1524 675 429 28 Remotely . | . . . . . . . . . Salvage Created 4672 | . 340 75 . . 2010 1198 1021 28 Parts 236 | . 28 6 . . 90 48 60 4 Haulers Intercepted 6 | . 1 . . . 4 . 1 . Recyclers Shooed 4 | . 1 . . . 2 . 1 . Parts Field Recycled . | . . . . . . . . . Retrieved Matter . | . . . . . . . . . Parts Self-Destructed . | . . . . . . . . . Prevented . | . . . . . . . . . Kills | -11 -10 -10 -10 -9 -8 -8 -8 -7 ------- Run | Yrd Mat Min Exi Min Mat Gar Mat Fac Combat Hostiles Destroyed 91 | . 10 5 . . 35 25 16 . Melee 9 | . . . . . . . 9 . Guns 75 | . 10 1 . . 35 22 7 . AOE 7 | . . 4 . . . 3 . . Classes Destroyed 13 | . 4 1 . . 4 2 2 . Worker 4 | . . 1 . . 1 . 2 . Builder 1 | . . . . . 1 . . . Hauler 6 | . 1 . . . 4 . 1 . Recycler 2 | . . . . . 1 . 1 . Operator 2 | . . . . . . . 1 1 Watcher 4 | . 1 . . . 2 . 1 . Swarmer 12 | . 6 3 . . 3 . . . Grunt 57 | . 4 2 . . 24 16 11 . Brawler 3 | . . . . . . 3 . . Duelist 2 | . . . . . . 2 . . Sentry 15 | . . . . . 7 4 4 . Specialist 1 | . . . . . . . 1 . Hunter 1 | . . . . . 1 . . . Best Kill Streak 6 | . 2 3 . . 5 6 5 1 Combat Bots Only 6 | . 2 3 . . 4 6 5 . Max Kills in Single Turn 2 | . 1 2 . . 1 2 1 1 Gunslinging 1 | . . . . . . 1 . . Exploded 2 | . . 2 . . . 2 . . Melee 1 | . . . . . . . 1 . Uniques/NPCs Destroyed . | . . . . . . . . . Combat | -11 -10 -10 -10 -9 -8 -8 -8 -7 -------- Run | Yrd Mat Min Exi Min Mat Gar Mat Fac Hostile Shots Fired 525 | . 77 24 . . 180 96 136 12 Missed 131 | . 14 4 . . 46 26 34 7 Damage Taken 5790 | . 611 271 . . 2022 1317 1542 27 Core 578 | . 72 33 . . 280 47 141 5 Absorbed by Shields 28 | . . . . . . 28 . . Regen/Repaired (Parts) 114 | . . . . . 114 . . . Core Remaining (%) 57 | 100 . . . 58 . . 14 . Volleys Fired 341 | . 52 23 . . 155 83 28 . Largest 2 | . 2 2 . . 2 2 2 . Hottest 50 | . 40 40 . . 50 50 48 . Shots Fired 629 | . 98 29 . . 297 153 52 . Gun 622 | . 97 26 . . 297 150 52 . Cannon . | . . . . . . . . . Launcher 7 | . 1 3 . . . 3 . . Special . | . . . . . . . . . Kinetic 622 | . 97 26 . . 297 150 52 . Thermal . | . . . . . . . . . Explosive 7 | . 1 3 . . . 3 . . Electromagnetic . | . . . . . . . . . Robot Hit Streak 36 | . 7 8 . . 36 22 20 . Robot Miss Streak 4 | . 3 4 . . 4 2 1 . Penetration Max . | . . . . . . . . . Secondary Targets 9 | . 1 . . . 5 3 . . Max Gunslinging Chain 1 | . 1 . . . 1 1 . . Shots Hit Robots 472 | . 54 16 . . 220 106 75 1 Core Hits 210 | . 20 12 . . 95 53 29 1 Critical Kills 2 | . 1 . . . 1 . . . Critical Parts Destroyed 3 | . . . . . 2 1 . . Critical Strikes 8 | . 1 . . . 3 1 3 . Destroy 5 | . 1 . . . 3 1 . . Sever 3 | . . . . . . . 3 . Melee Attacks 44 | . . . . . . . 43 1 Impact . | . . . . . . . . . Slashing 44 | . . . . . . . 43 1 Piercing . | . . . . . . . . . Sneak Attacks 7 | . . . . . . . 7 . Combat Hostiles . | . . . . . . . . . Follow-up Attacks . | . . . . . . . . . Damage Inflicted 8894 | . 586 514 . . 3563 2186 2000 45 Guns 6895 | . 586 172 . . 3477 1918 742 . Cannons . | . . . . . . . . . Explosions 607 | . . 339 . . . 268 . . Melee 1302 | . . . . . . . 1257 45 Ramming 90 | . . 3 . . 86 . 1 . Kinetic 6895 | . 586 172 . . 3477 1918 742 . Thermal 69 | . . 69 . . . . . . Explosive 538 | . . 270 . . . 268 . . Electromagnetic . | . . . . . . . . . Impact . | . . . . . . . . . Slashing 1302 | . . . . . . . 1257 45 Piercing . | . . . . . . . . . Highest Corruption 1 | . 1 1 1 1 . . . . Average Corruption 1 | . 1 1 1 1 . . . . Corruption Purged . | . . . . . . . . . Corruption Blocked . | . . . . . . . . . Effects 11 | . 6 3 2 . . . . . Message Errors 4 | . 3 1 . . . . . . Matter Fused 2 | . . 1 1 . . . . . Parts Rejected 1 | . 1 . . . . . . . Data Loss (minor) 4 | . 2 1 1 . . . . . Overload Shots . | . . . . . . . . . Overflow Damage 123 | . . 12 . . . . 111 . Projectiles . | . . . . . . . . . Explosions 12 | . . 12 . . . . . . Melee 111 | . . . . . . . 111 . Knockbacks . | . . . . . . . . . Impact . | . . . . . . . . . Kinetic . | . . . . . . . . . Secondary . | . . . . . . . . . Self-Inflicted Damage 111 | . . 70 . . . 41 . . Shots 4 | . . 2 . . . 2 . . Rammed . | . . . . . . . . . Targets Rammed 12 | . . 1 . . 10 . 1 . Kicked 12 | . . 1 . . 10 . 1 . Crushed . | . . . . . . . . . Highest Temperature 185 | . 18 3 . . 84 185 180 . Average Temperature 57 | . 9 3 . . 40 65 56 . Received Heat Transfer 2610 | . 162 81 . . 963 567 837 . Siege Activations . | . . . . . . . . . Robots Corrupted . | . . . . . . . . . Combat Hostiles . | . . . . . . . . . Parts Fried . | . . . . . . . . . Impact Corruptions . | . . . . . . . . . Robots Melted . | . . . . . . . . . Combat Hostiles . | . . . . . . . . . Parts Melted . | . . . . . . . . . Heat Transferred 100 | . . 100 . . . . . . Parts Sabotaged . | . . . . . . . . . Parts Stolen . | . . . . . . . . . Parts Stripped . | . . . . . . . . . Power Chain Reactions . | . . . . . . . . . Alert | -11 -10 -10 -10 -9 -8 -8 -8 -7 ------- Run | Yrd Mat Min Exi Min Mat Gar Mat Fac Peak Influence 1198 | . 238 239 . . 751 1198 764 235 Initial 583 | . . 45 . . . 488 583 215 Average 401 | . 115 161 . . 306 881 530 221 Maximum Alert Level 4 | . 1 1 . . 3 4 3 1 Low Security (%) 30 | 100 79 69 . 100 24 . . . Level 1 28 | . 20 30 . . 50 . 24 100 Level 2 21 | . . . . . 22 27 56 . Level 3 14 | . . . . . 2 52 18 . Level 4 4 | . . . . . . 20 . . Level 5 . | . . . . . . . . . High Security . | . . . . . . . . . Max Security . | . . . . . . . . . Squads Dispatched 15 | . 1 . . . 6 . 7 1 Investigation 5 | . . . . . 4 . 1 . Extermination . | . . . . . . . . . Reinforcement 7 | . 1 . . . 2 . 3 1 Assault . | . . . . . . . . . Garrison 3 | . . . . . . . 3 . Intercept . | . . . . . . . . . Searches Triggered . | . . . . . . . . . Construction Impeded . | . . . . . . . . . Haulers Reinforced . | . . . . . . . . . Active Scanning Responses . | . . . . . . . . . Cargo Convoy Interrupts . | . . . . . . . . . Stealth | -11 -10 -10 -10 -9 -8 -8 -8 -7 --------- Run | Yrd Mat Min Exi Min Mat Gar Mat Fac Distress Signals 9 | . 1 . . . 4 . 4 . Communications Jammed . | . . . . . . . . . Distress Signals . | . . . . . . . . . Times Spotted 151 | . 24 5 . . 64 24 32 2 Peak Tracking Total 7 | . 5 3 . . 6 4 7 4 Tactical Retreats 17 | . 2 . . . 8 . 7 . Traps | -11 -10 -10 -10 -9 -8 -8 -8 -7 ------- Run | Yrd Mat Min Exi Min Mat Gar Mat Fac Traps Triggered 15 | . 8 . . . 2 4 1 . Indirectly . | . . . . . . . . . Trap Hack Attempts . | . . . . . . . . . Triggered . | . . . . . . . . . Disarmed . | . . . . . . . . . Reprogrammed . | . . . . . . . . . Reused . | . . . . . . . . . Traps Extracted . | . . . . . . . . . Installed . | . . . . . . . . . Triggered . | . . . . . . . . . Machines | -11 -10 -10 -10 -9 -8 -8 -8 -7 ---------- Run | Yrd Mat Min Exi Min Mat Gar Mat Fac Machines Disabled 7 | . . 3 . . 1 3 . . Max in Single Turn 3 | . . 3 . . 1 1 . . Garrison Relay 3 | . . . . . . 3 . . Machines Repaired . | . . . . . . . . . Machines Dismantled . | . . . . . . . . . Machines Sabotaged . | . . . . . . . . . Overloaded Fab Kills . | . . . . . . . . . Hacking | -11 -10 -10 -10 -9 -8 -8 -8 -7 --------- Run | Yrd Mat Min Exi Min Mat Gar Mat Fac Machines Accessed 15 | . 5 . 1 . 4 2 3 . Terminals 11 | . 5 . . . 2 2 2 . Fabricators . | . . . . . . . . . Repair Stations 1 | . . . . . 1 . . . Recycling Units . | . . . . . . . . . Scanalyzers 1 | . . . . . . . 1 . Garrison Access 1 | . . . . . 1 . . . Total Hacks 35 | . 8 . 1 . 12 6 8 . Successful 14 | . 3 . 1 . 5 2 3 . Failed 20 | . 4 . . . 7 4 5 . Catastrophic 4 | . . . . . 2 1 1 . Database Lockouts 1 | . 1 . . . . . . . Manual 22 | . 9 . 1 . 7 . 5 . Terminals 26 | . 8 . . . 7 6 5 . Fabricators . | . . . . . . . . . Repair Stations 2 | . . . . . 2 . . . Recycling Units . | . . . . . . . . . Scanalyzers 3 | . . . . . . . 3 . Garrison Access 3 | . . . . . 3 . . . Terminal Hacks 9 | . 2 . 1 . 2 2 2 . Record 1 | . 1 . . . . . . . Robot Analysis 3 | . 1 . . . 2 . . . Open Door 1 | . . . . . . 1 . . Unreport Threat 2 | . . . . . . . 2 . Patrol Navigation 1 | . . . . . . 1 . . Derelict Proto ID Bank 1 | . . . 1 . . . . . Fabricator Hacks . | . . . . . . . . . Repair Station Hacks 2 | . . . . . 2 . . . Scan Component 1 | . . . . . 1 . . . Repair 1 | . . . . . 1 . . . Recycling Unit Hacks . | . . . . . . . . . Scanalyzer 1 | . . . . . . . 1 . Insert Component 1 | . . . . . . . 1 . Garrison Access Hacks 1 | . . . . . 1 . . . Unlock Access 1 | . . . . . 1 . . . Unauthorized Hacks 1 | . 1 . . . . . . . Terminals 1 | . 1 . . . . . . . Botnet 1 | . 1 . . . . . . . Fabricators . | . . . . . . . . . Repair Stations . | . . . . . . . . . Recycling Units . | . . . . . . . . . Scanalyzers . | . . . . . . . . . Garrison Access . | . . . . . . . . . Data Cores Recovered . | . . . . . . . . . Used . | . . . . . . . . . Hacking Detections 12 | . 5 . . . 3 1 3 . Full Trace Events 3 | . . . . . 2 1 . . Feedback Events . | . . . . . . . . . Feedback Blocked . | . . . . . . . . . Robot Schematics Acquired . | . . . . . . . . . Robots Built . | . . . . . . . . . Authchips . | . . . . . . . . . Time . | . . . . . . . . . Total Robot Build Rating . | . . . . . . . . . Part Schematics Acquired . | . . . . . . . . . Parts Built . | . . . . . . . . . Authchips . | . . . . . . . . . Time . | . . . . . . . . . Total Part Build Rating . | . . . . . . . . . Parts Repaired 1 | . . . . . 1 . . . Time 22 | . . . . . 22 . . . Parts Recycled . | . . . . . . . . . Recycled Matter . | . . . . . . . . . Retrieved Matter . | . . . . . . . . . Retrieved Components . | . . . . . . . . . Parts Scanalyzed 1 | . . . . . . . 1 . Part Schematics Acquired . | . . . . . . . . . Parts Damaged 1 | . . . . . . . 1 . Bothacking | -11 -10 -10 -10 -9 -8 -8 -8 -7 ------------ Run | Yrd Mat Min Exi Min Mat Gar Mat Fac Used RIF Installer 1 | . . . . . . 1 . . Robots Hacked . | . . . . . . . . . Non-combat . | . . . . . . . . . Combat . | . . . . . . . . . Robot Hacks Applied . | . . . . . . . . . Relay Couplers Released 14 | . . . . . . 14 . . Machine Destruction 14 | . . . . . . 14 . . Fabnet Peak Effective % . | . . . . . . . . . Robots Rewired . | . . . . . . . . . Allies Hacked . | . . . . . . . . . Hacks Repelled . | . . . . . . . . . Allies | -11 -10 -10 -10 -9 -8 -8 -8 -7 -------- Run | Yrd Mat Min Exi Min Mat Gar Mat Fac Total Allies 3 | . . 2 . . . 1 . . Largest Group 2 | . . 2 1 . . 1 1 . Highest-Rated Group 42 | . . 42 31 . . 31 31 . Highest-Rated Ally 31 | . . 31 31 . . 31 31 . Total Orders . | . . . . . . . . . Ally Attacks 17 | . . . . . . 13 4 . Total Damage 249 | . . . . . . 209 40 . Kills . | . . . . . . . . . Allies Corrupted . | . . . . . . . . . Allies Melted . | . . . . . . . . . Intel | -11 -10 -10 -10 -9 -8 -8 -8 -7 ------- Run | Yrd Mat Min Exi Min Mat Gar Mat Fac Robot Analysis Total 3 | . 1 . . . 2 . . . Derelict Logs Recovered 1 | . . 1 . . . . . . Drone Launches . | . . . . . . . . . Drone Recoveries . | . . . . . . . . . Exploration | -11 -10 -10 -10 -9 -8 -8 -8 -7 ------------- Run | Yrd Mat Min Exi Min Mat Gar Mat Fac Turns Passed 5557 | 81 950 495 270 15 1826 1058 810 52 Spaces Moved 2895 | 45 568 294 245 15 879 491 315 43 Core 5 | 2 3 . . . . . . . Treads 164 | 43 121 . . . . . . . Legs 2416 | . 178 294 245 15 879 491 314 . Wheels 266 | . 266 . . . . . . . Hover 44 | . . . . . . . 1 43 Flight . | . . . . . . . . . Fastest Speed 50 | 50 100 120 90 90 105 122 65 108 Average Speed 136 | 155 125 147 107 90 121 159 177 108 Slowest Speed 470 | 160 250 190 120 90 193 193 470 108 Overloaded Moves 24 | . . . . . . . 24 . Propulsion Burnouts . | . . . . . . . . . Robots Hopped . | . . . . . . . . . Cave-ins Triggered . | . . . . . . . . . Exploration Rate (%) 41 | 4 94 59 63 5 54 60 29 2 Regions Visited 8 Branch Regions 3 Pre-discovered Areas 1 | . . . . 1 . . . . Known Exits Taken 2 | . . . . . 1 . 1 . Unknown Exits Taken 5 | 1 1 1 1 1 . . . . Scrap Searched 1 | . . 1 . . . . . . Spaces Dug 31 | . 7 15 . . . 9 . . Terrain Destroyed 44 | . 7 26 . . . 11 . . Melee . | . . . . . . . . . Projectile . | . . . . . . . . . AOE 44 | . 7 26 . . . 11 . . Terrain Rammed . | . . . . . . . . . Walls Destroyed . | . . . . . . . . . Machines Disabled . | . . . . . . . . . Actions | -11 -10 -10 -10 -9 -8 -8 -8 -7 --------- Run | Yrd Mat Min Exi Min Mat Gar Mat Fac Total 3929 | 53 711 329 253 16 1406 652 461 48 Wait 383 | . 51 . . . 279 38 15 . Move 2887 | 44 567 293 244 14 878 490 314 43 Hop . | . . . . . . . . . Pick Up 64 | 3 13 2 . . 22 11 13 . Fast Attach 38 | 6 14 1 . . 15 . 1 1 Attach 31 | . 4 . . 2 5 11 9 . Detach 6 | . . . 1 . 1 . 1 3 Swap 51 | . 6 4 4 . 16 3 18 . Drop 58 | . 4 5 4 . 25 2 18 . Fire 341 | . 52 23 . . 155 83 28 . Melee 44 | . . . . . . . 43 1 Ram . | . . . . . . . . . Kick 12 | . . 1 . . 10 . 1 . Crush . | . . . . . . . . . Escape Stasis 14 | . . . . . . 14 . . Rewire . | . . . . . . . . . Trap . | . . . . . . . . . Miscellaneous . | . . . . . . . . . Route ------- -11/Scrapyard -10/Materials (discovered 5 exits: [*Mat x3] / [*Min x2]) -10/Mines (discovered 2 exits: [*Mat] / *Exi) -10/Exiles -9/Mines -8/Materials (discovered 3 exits: *Fac x2 / Gar) -8/Garrison (discovered 2 exits: *Mat x2) -8/Materials (discovered 2 exits: *Fac x2) -7/Factory History --------- Turn | Location | Event 16 | -11/Scrapyard | Discovered new exit (range 15) 82 | -11/Scrapyard | Entered Materials 269 | -10/Materials | Discovered new exit (range 7) 312 | -10/Materials | Build established: Mutant 458 | -10/Materials | Discovered new exit (range 7) 581 | -10/Materials | Central database locked down 710 | -10/Materials | Discovered new exit (range 16) 933 | -10/Materials | Discovered new exit (range 16) 997 | -10/Materials | Discovered new exit (range 16) 1032 | -10/Materials | Entered Mines 1124 | -10/Mines | Found a damaged Exp. Sensor Array with a note attached 1128 | -10/Mines | Found Prototype Device 1358 | -10/Mines | Discovered new exit (range 13) 1379 | -10/Mines | Learned 2 Materials zone layouts 1397 | -10/Mines | A weapon hastily lodged in a ceiling crevice suddenly fell to the ground 1521 | -10/Mines | Deemed a non-threat by the Exiles lab entrance 1522 | -10/Mines | Discovered new exit (range 5) 1527 | -10/Mines | Entered Exiles 1527 | -10/Exiles | Accompanied by 1 ally 1556 | -10/Exiles | Met 8R-AWN 1557 | -10/Exiles | Led the pair of lost Derelicts to a safe place 1600 | -10/Exiles | Build established: Scavenger-Mutant 1604 | -10/Exiles | Met EX-HEX 1647 | -10/Exiles | Met EX-BIN 1665 | -10/Exiles | Aligned with FarCom system 1666 | -10/Exiles | Given EX-Vault access code 1694 | -10/Exiles | Opened EX-Vault 1701 | -10/Exiles | Found Potential Leg 1704 | -10/Exiles | Found Potential Leg 1723 | -10/Exiles | Warned to stay clear of 0b10 Research branches 1748 | -10/Exiles | Met EX-DEC 1788 | -10/Exiles | Discovered new exit (range 12) 1797 | -10/Exiles | Left Exiles lab with Potential Leg 1797 | -10/Exiles | Entered Mines 1798 | -9/Mines | Learned location of Storage (-8) 1808 | -9/Mines | Discovered new exit (range 5) 1812 | -9/Mines | Entered Materials 1812 | -8/Materials | Evolved 4 slots: Propulsion x2, Utility x2 1813 | -8/Materials | Identified exit to Factory 2002 | -8/Materials | Build established: Mutant 2319 | -8/Materials | Build established: Scavenger-Mutant 2790 | -8/Materials | Repaired Imp. Carbon-fiber Leg? 3194 | -8/Materials | Build established: Mutant 3201 | -8/Materials | Discovered exit to Factory (range 14) 3395 | -8/Materials | Core integrity fell below 50% 3458 | -8/Materials | Found Powered Armor 3461 | -8/Materials | Found Powered Armor 3463 | -8/Materials | Found Powered Armor 3637 | -8/Materials | Identified exit to Garrison 3638 | -8/Materials | Entered Garrison 3777 | -8/Garrison | Triggered checkpoint 3831 | -8/Garrison | Garrison Relay disabled 3898 | -8/Garrison | Triggered checkpoint 3988 | -8/Garrison | Triggered checkpoint 4076 | -8/Garrison | Spotted B-75 Beast 4076 | -8/Garrison | Spotted B-75 Beast 4112 | -8/Garrison | Triggered checkpoint 4229 | -8/Garrison | Lost 3 parts (1p1n1w) 4266 | -8/Garrison | Rescued a captive Derelict 4291 | -8/Garrison | Garrison Relay disabled 4320 | -8/Garrison | Discovered new exit (range 14) 4419 | -8/Garrison | Garrison Relay disabled 4566 | -8/Garrison | Triggered checkpoint 4628 | -8/Garrison | Discovered new exit (range 12) 4647 | -8/Garrison | Installed Relay Interface Framework 4696 | -8/Garrison | Entered Materials 4696 | -8/Materials | Accompanied by 1 ally 4792 | -8/Materials | Build established: Scavenger-Mutant 4808 | -8/Materials | Garrison activated, responded to threat 5076 | -8/Materials | Discovered exit to Factory (range 3) 5127 | -8/Materials | Identified Exp. Sensor Array 5431 | -8/Materials | Core integrity fell below 20% 5492 | -8/Materials | Discovered exit to Factory (range 4) 5506 | -8/Materials | Entered Factory 5506 | -7/Factory | Evolved 2 slots: Utility x2 5558 | -7/Factory | Self-destructed Last Messages --------------- 05456_ R-06 Scavenger collects Lgt. Nuclear Core. 05460_ R-06 Scavenger collects Hvy. Particle Gun. 05468_ R-06 Scavenger collects Hover Unit. 05492_ EXIT=FOUND: FACTORY 05498_ Dropped Imp. Aluminum Leg. 05498_ Dropped Aluminum Leg. 05505_ Dropped Powered Armor. PARAMETERS=UTILITY+2 LOCATION=FACTORY GOAL=ESCAPE 05506_ Receiving FarCom transmissions... 05516_ O-24 Administrator: "IFF HANDSHAKE FAILED. SECURING TERMINAL." 05517_ O-24 Administrator uses terminal to summon reinforcements. 05517_ ALERT: Hostiles spotted, dispatching reinforcements to Terminal F012. 05517_ O-24 Administrator locks terminal. 05522_ O-24 Administrator destroyed. 05525_ Acquired System Shield. 05527_ Acquired 28 matter. 05547_ ALERT: All DSF locations entering lockdown mode. 05553_ K-01 Serf cleans the Nuclear Reactor. Map ----- +----------------------------------------------------+ | ?????????????????????????????????????????????????? | | ?????????????????????????????????????????????????? | | ?????????????????????????????????????????????????? | | ?????????????????????????????????????????????????? | | ?????????????????????????????????????????????????? | | ?????????????????????????????????????????????????? | | ??????????#####??????????????????????????????????? | | ??????????# ???#?????????????????????????????? | | ??????????# """" #?????????????????????????????? | | ??????????# """" #?????????????????????????????? | | ??????????# """" #?????????????????????????????? | | ??????????# ] """" #?????????????????????????????? | | ??????????# #?????????????????????????????? | | ??????????# #?????????????????????????????? | | ????####### #?????????????????????????????? | | ????# # #????????? ??????????????????? | | ????# ###+#############g ??????????????????? | | ????# g ??????????????????? | | ????# Y#????????????????????????? | | ????# g #????????????????????????? | | ????# #????????????????????????? | | ????# #????????????????????????? | | #######+#+###########+#######????????????????????? | | # # #????????????????????? | | # # #????????????????????? | | # # @ #????????????????????? | | # """ """ """ # """ """ """ #????????????????????? | | # """ """ """ # """ """ """ #????????????????????? | | # """ """ """ # """ """ """ k ???????????????????? | | # * # ###??????????????????? | | # =/ # """ """ """ #????????????????????? | | # #??"" """ """ #????????????????????? | | # """"T"""" #??"" """ ""? #????????????????????? | | # """"""""""" #??????? ????????????????????????? | | ?##############????????##????????????????????????? | | | | | | | | | | | | | | | | | | | | | | | | | | | | | | | +----------------------------------------------------+ Best States ------------- Heat Dissipation 64 Energy Generation 16 Energy Capacity 290 Matter Stores 300 Matter Capacity 300 Sight Range 16 Terrain Scan Density 10 Armor Coverage 625 Evasion (%) 59 Targeting Accuracy 8 Recoil Reduction 2 Defensive Hacking 10 Item Schematics ----------------- None Robot Schematics ------------------ None Fabricated ------------ Nothing Alien Tech Used ----------------- None Achievements -------------- None Challenges ------------ None Game ------ Seed MomentumWardroneBay Manual? 0 Play Time 00:48:40 Cumulative 63.0 hours Start 2024.06.26 @ 22:18:27 End 2024.06.26 @ 23:17:55 Sessions 1 Manual Loads 0 Difficulty Rogue Special Mode None Game No. 58 Rogue 51 Adventurer 7 Explorer 0 Win Type - Total 2 Types 2/0/0/0/0/0/0/0/0 Lore% 19 Gallery% 37 Achievement% 37 Wizard Run 0 Options --------- Layout 0 ASCII 0 Keyboard 0 Movement Mouse Keybinds 0 Fullscreen 2 Font 24/Smallcaps Map View 113x50 Zoom Use 0% Tactical HUD 1 Map Filters NONE Filters NONE Steam 1 RUN: 226a6259-667a-4631-af6a-1f11d74e65e0